[Event "Titled Tuesday Blitz May 24 Late 2022"]
[White "Vujic, Mihailo"]
[Black "Arnold, Ken"]
[WhiteFideId "918873"]
[BlackFideId "2056836"]
[WhiteElo "2256"]
[BlackElo "2301"]
[Result "1-0"]
[Round "05"]
[TimeControl "180+1"]
[Date "2022.05.25"]
[WhiteClock "0:00:09"]
[BlackClock "0:00:04"]

1. e4 {[%clk 0:02:59]}  c6 {[%clk 0:02:59]} 2. d4 {[%clk 0:02:58]}  d5 {[%clk 0:02:59]} 3. f3 {[%clk 0:02:59]}  dxe4 {[%clk 0:02:59]} 4. fxe4 {[%clk 0:02:58]}  e5 {[%clk 0:03:00]} 5. Nf3 {[%clk 0:02:57]}  Bg4 {[%clk 0:03:00]} 6. Bc4 {[%clk 0:02:56]}  Nd7 {[%clk 0:03:00]} 7. O-O {[%clk 0:02:50]}  Ngf6 {[%clk 0:02:58]} 8. c3 {[%clk 0:02:48]}  Bxf3 {[%clk 0:02:52]} 9. Qxf3 {[%clk 0:02:43]}  Bd6 {[%clk 0:02:51]} 10. Bg5 {[%clk 0:02:41]}  h6 {[%clk 0:02:50]} 11. Bh4 {[%clk 0:02:40]}  Qb6 {[%clk 0:02:42]} 12. Nd2 {[%clk 0:02:08]}  exd4 {[%clk 0:02:29]} 13. Bxf6 {[%clk 0:02:07]}  Nxf6 {[%clk 0:02:25]} 14. e5 {[%clk 0:02:05]}  Bxe5 {[%clk 0:02:15]} 15. Ne4 {[%clk 0:01:53]}  O-O {[%clk 0:02:08]} 16. Nxf6+ {[%clk 0:01:51]}  Bxf6 {[%clk 0:02:05]} 17. Qg4 {[%clk 0:01:45]}  dxc3+ {[%clk 0:01:51]} 18. Kh1 {[%clk 0:01:45]}  cxb2 {[%clk 0:01:39]} 19. Rab1 {[%clk 0:01:39]}  Qd4 {[%clk 0:01:34]} 20. Rf4 {[%clk 0:01:35]}  Qc3 {[%clk 0:01:10]} 21. h3 {[%clk 0:01:17]}  Rae8 {[%clk 0:01:03]} 22. Rff1 {[%clk 0:01:10]}  h5 {[%clk 0:00:59]} 23. Qf4 {[%clk 0:01:03]}  Qe3 {[%clk 0:00:46]} 24. Qf5 {[%clk 0:00:54]}  Re5 {[%clk 0:00:44]} 25. Qc2 {[%clk 0:00:48]}  Rg5 {[%clk 0:00:37]} 26. Rf3 {[%clk 0:00:36]}  Qd4 {[%clk 0:00:35]} 27. Bb3 {[%clk 0:00:24]}  Rc5 {[%clk 0:00:33]} 28. Qe2 {[%clk 0:00:19]}  Rc1+ {[%clk 0:00:32]} 29. Rf1 {[%clk 0:00:20]}  Qf4 {[%clk 0:00:27]} 30. Rd1 {[%clk 0:00:15]}  Be5 {[%clk 0:00:24]} 31. Kg1 {[%clk 0:00:14]}  Qh2+ {[%clk 0:00:23]} 32. Kf2 {[%clk 0:00:14]}  Bg3+ {[%clk 0:00:22]} 33. Kf3 {[%clk 0:00:13]}  Rc3+ {[%clk 0:00:21]} 34. Rd3 {[%clk 0:00:13]}  Rxd3+ {[%clk 0:00:21]} 35. Qxd3 {[%clk 0:00:14]}  Be5 {[%clk 0:00:20]} 36. Qg6 {[%clk 0:00:12]}  Qf4+ {[%clk 0:00:19]} 37. Ke2 {[%clk 0:00:12]}  h4 {[%clk 0:00:12]} 38. Rf1 {[%clk 0:00:11]}  Qxf1+ {[%clk 0:00:06]} 39. Kxf1 {[%clk 0:00:10]}  Kh8 {[%clk 0:00:06]} 40. Qh5+ {[%clk 0:00:10]}  Kg8 {[%clk 0:00:05]} 41. Bc2 {[%clk 0:00:09]}  g6 {[%clk 0:00:05]} 42. Qxe5 {[%clk 0:00:09]}  Rd8 {[%clk 0:00:04]} 43. Qxb2 {[%clk 0:00:09]} 1-0


[Site "https://www.chess.com"]

[Event "Titled Tuesday Blitz May 24 Late 2022"]
[White "Winkels, Marcel"]
[Black "Blackman, Justin"]
[WhiteFideId "1003887"]
[BlackFideId "11100516"]
[WhiteElo "1900"]
[BlackElo "2112"]
[Result "0-1"]
[Round "05"]
[TimeControl "180+1"]
[Date "2022.05.25"]
[WhiteClock "0:01:02"]
[BlackClock "0:01:06"]

1. e4 {[%clk 0:03:00]}  e5 {[%clk 0:02:53]} 2. Nf3 {[%clk 0:02:59]}  Nc6 {[%clk 0:02:53]} 3. Bc4 {[%clk 0:02:57]}  Bc5 {[%clk 0:02:52]} 4. b4 {[%clk 0:02:56]}  Bxb4 {[%clk 0:02:52]} 5. c3 {[%clk 0:02:56]}  Ba5 {[%clk 0:02:53]} 6. d4 {[%clk 0:02:55]}  d6 {[%clk 0:02:51]} 7. O-O {[%clk 0:02:40]}  Bb6 {[%clk 0:02:38]} 8. Ng5 {[%clk 0:02:31]}  Nh6 {[%clk 0:02:35]} 9. Qh5 {[%clk 0:02:30]}  Qf6 {[%clk 0:02:18]} 10. f4 {[%clk 0:02:20]}  exd4 {[%clk 0:02:17]} 11. e5 {[%clk 0:02:13]}  Qe7 {[%clk 0:02:06]} 12. exd6 {[%clk 0:01:55]}  cxd6 {[%clk 0:02:03]} 13. Kh1 {[%clk 0:01:31]}  Bg4 {[%clk 0:01:20]} 14. Qh4 {[%clk 0:01:29]}  O-O-O {[%clk 0:01:16]} 15. Nxf7 {[%clk 0:01:14]}  Qxh4 {[%clk 0:01:14]} 16. Nxh8 {[%clk 0:01:12]}  Rxh8 {[%clk 0:01:10]} 17. Na3 {[%clk 0:01:07]}  Nf5 {[%clk 0:01:09]} 18. h3 {[%clk 0:01:02]}  Ng3+ {[%clk 0:01:06]} 0-1


[Site "https://www.chess.com"]

[Event "Titled Tuesday Blitz May 24 Late 2022"]
[White "Yanayt, Eugene"]
[Black "Wieczorek, Oskar"]
[WhiteFideId "2020165"]
[BlackFideId "1133950"]
[WhiteElo "2046"]
[BlackElo "2330"]
[Result "1/2-1/2"]
[Round "05"]
[TimeControl "180+1"]
[Date "2022.05.24"]
[WhiteClock "0:00:05"]
[BlackClock "0:00:11"]

1. d4 {[%clk 0:03:00]}  Nf6 {[%clk 0:02:59]} 2. Nf3 {[%clk 0:02:58]}  c5 {[%clk 0:02:59]} 3. d5 {[%clk 0:02:58]}  g6 {[%clk 0:02:59]} 4. c4 {[%clk 0:02:57]}  Bg7 {[%clk 0:02:58]} 5. Nc3 {[%clk 0:02:56]}  d6 {[%clk 0:02:59]} 6. Nd2 {[%clk 0:02:54]}  O-O {[%clk 0:02:54]} 7. e4 {[%clk 0:02:54]}  a6 {[%clk 0:02:54]} 8. Be2 {[%clk 0:02:51]}  b5 {[%clk 0:02:54]} 9. cxb5 {[%clk 0:02:49]}  axb5 {[%clk 0:02:55]} 10. Bxb5 {[%clk 0:02:48]}  Ba6 {[%clk 0:02:55]} 11. O-O {[%clk 0:02:42]}  Ne8 {[%clk 0:02:56]} 12. Bxa6 {[%clk 0:02:32]}  Rxa6 {[%clk 0:02:51]} 13. Nc4 {[%clk 0:02:25]}  Nd7 {[%clk 0:02:51]} 14. Qe2 {[%clk 0:02:18]}  Nc7 {[%clk 0:02:51]} 15. a4 {[%clk 0:02:09]}  Qa8 {[%clk 0:02:42]} 16. Bg5 {[%clk 0:01:55]}  Re8 {[%clk 0:02:39]} 17. a5 {[%clk 0:01:45]}  e6 {[%clk 0:02:14]} 18. Qd2 {[%clk 0:01:44]}  Bxc3 {[%clk 0:01:44]} 19. bxc3 {[%clk 0:01:43]}  exd5 {[%clk 0:01:44]} 20. exd5 {[%clk 0:01:42]}  Qxd5 {[%clk 0:01:41]} 21. Qxd5 {[%clk 0:00:55]}  Nxd5 {[%clk 0:01:42]} 22. Rfd1 {[%clk 0:00:54]}  Nxc3 {[%clk 0:00:48]} 23. Rxd6 {[%clk 0:00:53]}  Nb8 {[%clk 0:00:43]} 24. f3 {[%clk 0:00:34]}  f5 {[%clk 0:00:35]} 25. Kf1 {[%clk 0:00:28]}  Nb5 {[%clk 0:00:25]} 26. Rb6 {[%clk 0:00:23]}  Nd4 {[%clk 0:00:20]} 27. Nd6 {[%clk 0:00:21]}  Rxb6 {[%clk 0:00:09]} 28. axb6 {[%clk 0:00:21]}  Re6 {[%clk 0:00:10]} 29. Bf4 {[%clk 0:00:16]}  g5 {[%clk 0:00:08]} 30. Ra8 {[%clk 0:00:14]}  Nc6 {[%clk 0:00:08]} 31. Bg3 {[%clk 0:00:11]}  f4 {[%clk 0:00:08]} 32. Bf2 {[%clk 0:00:10]}  Rxd6 {[%clk 0:00:08]} 33. Bxc5 {[%clk 0:00:10]}  Rd7 {[%clk 0:00:08]} 34. Ra7 {[%clk 0:00:08]}  Kf7 {[%clk 0:00:08]} 35. Rc7 {[%clk 0:00:07]}  Ke6 {[%clk 0:00:07]} 36. Bf8 {[%clk 0:00:05]}  h5 {[%clk 0:00:06]} 37. Bh6 {[%clk 0:00:04]}  Rd5 {[%clk 0:00:05]} 38. h4 {[%clk 0:00:04]}  gxh4 {[%clk 0:00:04]} 39. Bxf4 {[%clk 0:00:04]}  Rb5 {[%clk 0:00:05]} 40. b7 {[%clk 0:00:04]}  Kd5 {[%clk 0:00:04]} 41. Rc8 {[%clk 0:00:04]}  Rxb7 {[%clk 0:00:04]} 42. Bxb8 {[%clk 0:00:03]}  Rxb8 {[%clk 0:00:05]} 43. Rc7 {[%clk 0:00:02]}  Ne5 {[%clk 0:00:05]} 44. Rh7 {[%clk 0:00:02]}  Ke6 {[%clk 0:00:05]} 45. Rxh5 {[%clk 0:00:02]}  Ng6 {[%clk 0:00:05]} 46. Rh6 {[%clk 0:00:02]}  Kf6 {[%clk 0:00:05]} 47. Kg1 {[%clk 0:00:02]}  Kg5 {[%clk 0:00:05]} 48. Rh7 {[%clk 0:00:02]}  Rb1+ {[%clk 0:00:06]} 49. Kh2 {[%clk 0:00:03]}  Rb2 {[%clk 0:00:07]} 50. Rc7 {[%clk 0:00:02]}  Nf4 {[%clk 0:00:07]} 51. Rc5+ {[%clk 0:00:03]}  Kf6 {[%clk 0:00:07]} 52. Kh1 {[%clk 0:00:02]}  Nxg2 {[%clk 0:00:07]} 53. Rc4 {[%clk 0:00:01]}  Kg5 {[%clk 0:00:07]} 54. Rg4+ {[%clk 0:00:01]}  Kh5 {[%clk 0:00:07]} 55. Rxg2 {[%clk 0:00:02]}  Rb3 {[%clk 0:00:08]} 56. Kh2 {[%clk 0:00:02]}  Rxf3 {[%clk 0:00:07]} 57. Rg8 {[%clk 0:00:02]}  Rf6 {[%clk 0:00:07]} 58. Rh8+ {[%clk 0:00:02]}  Kg4 {[%clk 0:00:08]} 59. Rg8+ {[%clk 0:00:02]}  Kf4 {[%clk 0:00:08]} 60. Rh8 {[%clk 0:00:03]}  Kg5 {[%clk 0:00:09]} 61. Rg8+ {[%clk 0:00:03]}  Kh5 {[%clk 0:00:10]} 62. Rh8+ {[%clk 0:00:03]}  Rh6 {[%clk 0:00:10]} 63. Rxh6+ {[%clk 0:00:03]}  Kxh6 {[%clk 0:00:11]} 64. Kh3 {[%clk 0:00:04]}  Kg7 {[%clk 0:00:11]} 65. Kh2 {[%clk 0:00:04]}  Kf8 {[%clk 0:00:10]} 66. Kh3 {[%clk 0:00:05]}  Ke8 {[%clk 0:00:11]} 67. Kxh4 {[%clk 0:00:05]} 1/2-1/2


[Site "https://www.chess.com"]

[Event "Titled Tuesday Blitz May 24 Late 2022"]
[White "Yang, Kaiqi"]
[Black "Bibasa, Bob"]
[WhiteFideId "8604398"]
[BlackFideId "10000240"]
[WhiteElo "2373"]
[BlackElo "2032"]
[Result "1-0"]
[Round "05"]
[TimeControl "180+1"]
[Date "2022.05.25"]
[WhiteClock "0:00:09"]
[BlackClock "0:00:06"]

1. d4 {[%clk 0:03:00]}  Nf6 {[%clk 0:03:00]} 2. c4 {[%clk 0:03:01]}  e6 {[%clk 0:03:00]} 3. Bf4 {[%clk 0:03:00]}  b6 {[%clk 0:02:59]} 4. a3 {[%clk 0:03:00]}  Bb7 {[%clk 0:03:00]} 5. Nc3 {[%clk 0:03:00]}  Be7 {[%clk 0:03:00]} 6. Qc2 {[%clk 0:02:59]}  O-O {[%clk 0:03:00]} 7. e4 {[%clk 0:02:59]}  d6 {[%clk 0:02:59]} 8. Nf3 {[%clk 0:02:59]}  c5 {[%clk 0:02:58]} 9. d5 {[%clk 0:02:54]}  e5 {[%clk 0:02:58]} 10. Be3 {[%clk 0:02:52]}  Nbd7 {[%clk 0:02:52]} 11. h3 {[%clk 0:02:52]}  Re8 {[%clk 0:02:51]} 12. Be2 {[%clk 0:02:50]}  Nf8 {[%clk 0:02:51]} 13. Nd2 {[%clk 0:02:50]}  Ng6 {[%clk 0:02:50]} 14. g3 {[%clk 0:02:51]}  h6 {[%clk 0:02:42]} 15. h4 {[%clk 0:02:51]}  Bc8 {[%clk 0:02:36]} 16. h5 {[%clk 0:02:43]}  Nf8 {[%clk 0:02:36]} 17. f3 {[%clk 0:02:40]}  N6h7 {[%clk 0:02:12]} 18. O-O-O {[%clk 0:02:35]}  Bf6 {[%clk 0:02:05]} 19. Nf1 {[%clk 0:02:31]}  Ng5 {[%clk 0:01:57]} 20. f4 {[%clk 0:02:16]}  exf4 {[%clk 0:01:48]} 21. gxf4 {[%clk 0:02:13]}  Bxc3 {[%clk 0:01:22]} 22. fxg5 {[%clk 0:02:12]}  Bd4 {[%clk 0:01:23]} 23. gxh6 {[%clk 0:02:01]}  Bxe3+ {[%clk 0:01:23]} 24. Nxe3 {[%clk 0:02:01]}  Qg5 {[%clk 0:01:23]} 25. Qd3 {[%clk 0:01:14]}  Qxh6 {[%clk 0:01:20]} 26. Kb1 {[%clk 0:01:13]}  Nh7 {[%clk 0:01:14]} 27. Bg4 {[%clk 0:01:04]}  Bxg4 {[%clk 0:01:04]} 28. Nxg4 {[%clk 0:01:03]}  Qf4 {[%clk 0:01:04]} 29. Rdg1 {[%clk 0:00:45]}  Qxe4 {[%clk 0:01:01]} 30. Nh6+ {[%clk 0:00:44]}  Kf8 {[%clk 0:01:01]} 31. Qxe4 {[%clk 0:00:44]}  Rxe4 {[%clk 0:01:01]} 32. Nf5 {[%clk 0:00:45]}  Rae8 {[%clk 0:00:18]} 33. Nxd6 {[%clk 0:00:44]}  R8e5 {[%clk 0:00:16]} 34. Nxe4 {[%clk 0:00:43]}  Rxe4 {[%clk 0:00:17]} 35. b3 {[%clk 0:00:38]}  Re3 {[%clk 0:00:16]} 36. Kc2 {[%clk 0:00:37]}  Re2+ {[%clk 0:00:17]} 37. Kd3 {[%clk 0:00:37]}  Rb2 {[%clk 0:00:15]} 38. Rb1 {[%clk 0:00:37]}  Ra2 {[%clk 0:00:15]} 39. a4 {[%clk 0:00:37]}  Nf6 {[%clk 0:00:13]} 40. h6 {[%clk 0:00:31]}  gxh6 {[%clk 0:00:13]} 41. Rxh6 {[%clk 0:00:32]}  Ng4 {[%clk 0:00:12]} 42. Rh8+ {[%clk 0:00:30]}  Kg7 {[%clk 0:00:12]} 43. Rhh1 {[%clk 0:00:28]}  Nf2+ {[%clk 0:00:12]} 44. Kc3 {[%clk 0:00:24]}  Nxh1 {[%clk 0:00:11]} 45. Rxh1 {[%clk 0:00:24]}  Kf6 {[%clk 0:00:11]} 46. Re1 {[%clk 0:00:24]}  Rh2 {[%clk 0:00:10]} 47. a5 {[%clk 0:00:22]}  Rh3+ {[%clk 0:00:08]} 48. Kb2 {[%clk 0:00:22]}  Rd3 {[%clk 0:00:08]} 49. Re8 {[%clk 0:00:20]}  Kg6 {[%clk 0:00:06]} 50. a6 {[%clk 0:00:20]}  f5 {[%clk 0:00:05]} 51. Kc2 {[%clk 0:00:15]}  Rd4 {[%clk 0:00:05]} 52. Re7 {[%clk 0:00:11]}  f4 {[%clk 0:00:05]} 53. Rxa7 {[%clk 0:00:08]}  f3 {[%clk 0:00:05]} 54. Ra8 {[%clk 0:00:08]}  Kg5 {[%clk 0:00:03]} 55. Rf8 {[%clk 0:00:08]}  Rf4 {[%clk 0:00:04]} 56. Rxf4 {[%clk 0:00:07]}  Kxf4 {[%clk 0:00:04]} 57. a7 {[%clk 0:00:08]}  f2 {[%clk 0:00:05]} 58. a8=Q {[%clk 0:00:08]}  f1=Q {[%clk 0:00:06]} 59. Qf8+ {[%clk 0:00:08]}  Ke3 {[%clk 0:00:06]} 60. Qxf1 {[%clk 0:00:09]} 1-0


[Site "https://www.chess.com"]

[Event "Titled Tuesday Blitz May 24 Late 2022"]
[White "Yuan, Qingyu"]
[Black "Janturin, Artur"]
[WhiteFideId "8609772"]
[BlackFideId "4130022"]
[WhiteElo "2359"]
[BlackElo "2412"]
[Result "1-0"]
[Round "05"]
[TimeControl "180+1"]
[Date "2022.05.25"]
[WhiteClock "0:00:45"]
[BlackClock "0:00:18"]

1. e4 {[%clk 0:03:00]}  a6 {[%clk 0:02:55]} 2. d4 {[%clk 0:03:00]}  b5 {[%clk 0:02:55]} 3. Nd2 {[%clk 0:02:58]}  Bb7 {[%clk 0:02:53]} 4. a4 {[%clk 0:02:59]}  b4 {[%clk 0:02:23]} 5. Bd3 {[%clk 0:02:58]}  Nf6 {[%clk 0:02:21]} 6. c4 {[%clk 0:02:51]}  bxc3 {[%clk 0:01:58]} 7. bxc3 {[%clk 0:02:50]}  e6 {[%clk 0:01:58]} 8. Rb1 {[%clk 0:02:37]}  Qc8 {[%clk 0:01:42]} 9. Ngf3 {[%clk 0:02:32]}  Nc6 {[%clk 0:01:39]} 10. O-O {[%clk 0:02:21]}  Be7 {[%clk 0:01:39]} 11. c4 {[%clk 0:02:05]}  a5 {[%clk 0:01:36]} 12. e5 {[%clk 0:01:58]}  Ng8 {[%clk 0:01:33]} 13. Re1 {[%clk 0:01:30]}  Nb4 {[%clk 0:01:33]} 14. Be4 {[%clk 0:01:27]}  Nh6 {[%clk 0:01:25]} 15. d5 {[%clk 0:01:19]}  exd5 {[%clk 0:00:47]} 16. cxd5 {[%clk 0:01:17]}  Bxd5 {[%clk 0:00:47]} 17. Rxb4 {[%clk 0:01:14]}  axb4 {[%clk 0:00:43]} 18. Bxd5 {[%clk 0:01:14]}  c6 {[%clk 0:00:44]} 19. Bb3 {[%clk 0:01:11]}  O-O {[%clk 0:00:40]} 20. Qc2 {[%clk 0:01:05]}  d5 {[%clk 0:00:29]} 21. exd6 {[%clk 0:01:05]}  Bxd6 {[%clk 0:00:29]} 22. Ne4 {[%clk 0:00:52]}  Be7 {[%clk 0:00:25]} 23. Bxh6 {[%clk 0:00:49]}  gxh6 {[%clk 0:00:26]} 24. Ng3 {[%clk 0:00:48]}  Bf6 {[%clk 0:00:19]} 25. Nf5 {[%clk 0:00:45]}  Bg7 {[%clk 0:00:18]} 26. Ne7+ {[%clk 0:00:45]} 1-0


[Site "https://www.chess.com"]

[Event "Titled Tuesday Blitz May 24 Late 2022"]
[White "Zakhartsov, Vladimir"]
[Black "Paravyan, David"]
[WhiteFideId "4145097"]
[BlackFideId "4194985"]
[WhiteElo "2428"]
[BlackElo "2569"]
[Result "0-1"]
[Round "05"]
[TimeControl "180+1"]
[Date "2022.05.24"]
[WhiteClock "0:00:04"]
[BlackClock "0:01:01"]

1. c4 {[%clk 0:03:00]}  Nf6 {[%clk 0:02:58]} 2. Nc3 {[%clk 0:02:57]}  d5 {[%clk 0:02:58]} 3. cxd5 {[%clk 0:02:57]}  Nxd5 {[%clk 0:02:59]} 4. Nf3 {[%clk 0:02:57]}  g6 {[%clk 0:02:59]} 5. g3 {[%clk 0:02:56]}  Bg7 {[%clk 0:02:58]} 6. Bg2 {[%clk 0:02:56]}  O-O {[%clk 0:02:59]} 7. h4 {[%clk 0:02:56]}  c5 {[%clk 0:02:53]} 8. h5 {[%clk 0:02:54]}  Nc6 {[%clk 0:02:54]} 9. Qa4 {[%clk 0:02:30]}  e6 {[%clk 0:02:29]} 10. hxg6 {[%clk 0:02:10]}  hxg6 {[%clk 0:02:30]} 11. Ne4 {[%clk 0:02:07]}  Qb6 {[%clk 0:02:23]} 12. a3 {[%clk 0:01:35]}  Rd8 {[%clk 0:01:55]} 13. d3 {[%clk 0:01:11]}  Bd7 {[%clk 0:01:54]} 14. Qc2 {[%clk 0:01:05]}  Rac8 {[%clk 0:01:53]} 15. Qxc5 {[%clk 0:00:40]}  Qa6 {[%clk 0:01:53]} 16. Qc4 {[%clk 0:00:34]}  b5 {[%clk 0:01:45]} 17. Qa2 {[%clk 0:00:34]}  Ncb4 {[%clk 0:01:45]} 18. axb4 {[%clk 0:00:30]}  Rxc1+ {[%clk 0:01:41]} 19. Kd2 {[%clk 0:00:31]}  Rc2+ {[%clk 0:01:32]} 20. Kd1 {[%clk 0:00:11]}  Qc6 {[%clk 0:01:32]} 21. Rb1 {[%clk 0:00:05]}  Nxb4 {[%clk 0:01:31]} 22. Qb3 {[%clk 0:00:05]}  a5 {[%clk 0:01:29]} 23. Ne1 {[%clk 0:00:04]}  Rc5 {[%clk 0:01:11]} 24. Nf6+ {[%clk 0:00:03]}  Bxf6 {[%clk 0:01:12]} 25. Bxc6 {[%clk 0:00:03]}  Bxc6 {[%clk 0:01:13]} 26. f3 {[%clk 0:00:03]}  Rc8 {[%clk 0:01:03]} 27. Nc2 {[%clk 0:00:02]}  Rxc2 {[%clk 0:01:00]} 28. Rc1 {[%clk 0:00:02]}  Rxc1+ {[%clk 0:01:00]} 29. Kxc1 {[%clk 0:00:03]}  Bd5+ {[%clk 0:01:00]} 30. Kd2 {[%clk 0:00:04]}  Bxb3 {[%clk 0:01:01]} 0-1


[Site "https://www.chess.com"]

[Event "Titled Tuesday Blitz May 24 Late 2022"]
[White "Zhigalko, Sergei"]
[Black "Nakamura, Hikaru"]
[WhiteFideId "13502956"]
[BlackFideId "2016192"]
[WhiteElo "2662"]
[BlackElo "2850"]
[Result "0-1"]
[Round "05"]
[TimeControl "180+1"]
[Date "2022.05.24"]
[WhiteClock "0:00:01"]
[BlackClock "0:00:52"]

1. e4 {[%clk 0:03:00]}  e5 {[%clk 0:03:00]} 2. Nf3 {[%clk 0:03:01]}  Nc6 {[%clk 0:03:00]} 3. Bb5 {[%clk 0:03:01]}  Nf6 {[%clk 0:03:00]} 4. O-O {[%clk 0:03:02]}  Nxe4 {[%clk 0:03:00]} 5. d4 {[%clk 0:03:02]}  Nd6 {[%clk 0:03:00]} 6. Bxc6 {[%clk 0:03:02]}  dxc6 {[%clk 0:03:01]} 7. dxe5 {[%clk 0:03:03]}  Nf5 {[%clk 0:03:01]} 8. Qxd8+ {[%clk 0:03:04]}  Kxd8 {[%clk 0:03:02]} 9. Nc3 {[%clk 0:03:04]}  Bd7 {[%clk 0:03:02]} 10. h3 {[%clk 0:03:04]}  Kc8 {[%clk 0:03:03]} 11. b3 {[%clk 0:03:01]}  h6 {[%clk 0:03:02]} 12. Bb2 {[%clk 0:03:02]}  a5 {[%clk 0:03:01]} 13. a4 {[%clk 0:02:59]}  b6 {[%clk 0:02:55]} 14. Rad1 {[%clk 0:02:58]}  Ne7 {[%clk 0:02:55]} 15. Rfe1 {[%clk 0:02:57]}  c5 {[%clk 0:02:54]} 16. Ne2 {[%clk 0:02:52]}  Ng6 {[%clk 0:02:41]} 17. c4 {[%clk 0:02:43]}  Bf5 {[%clk 0:02:39]} 18. Rd2 {[%clk 0:02:29]}  Kb7 {[%clk 0:02:36]} 19. Nc3 {[%clk 0:02:22]}  Nf4 {[%clk 0:02:31]} 20. Nd5 {[%clk 0:02:13]}  Nd3 {[%clk 0:02:22]} 21. Red1 {[%clk 0:01:59]}  Nxb2 {[%clk 0:02:22]} 22. Rxb2 {[%clk 0:02:00]}  g5 {[%clk 0:02:22]} 23. Rbd2 {[%clk 0:01:48]}  Bg7 {[%clk 0:02:20]} 24. Nf6 {[%clk 0:01:00]}  Bxf6 {[%clk 0:02:17]} 25. exf6 {[%clk 0:01:01]}  Rae8 {[%clk 0:02:17]} 26. Nh2 {[%clk 0:00:24]}  Re6 {[%clk 0:02:15]} 27. Ng4 {[%clk 0:00:24]}  Bxg4 {[%clk 0:01:55]} 28. hxg4 {[%clk 0:00:24]}  Rxf6 {[%clk 0:01:55]} 29. Rd7 {[%clk 0:00:13]}  Re8 {[%clk 0:01:52]} 30. f3 {[%clk 0:00:09]}  Re3 {[%clk 0:01:45]} 31. R1d3 {[%clk 0:00:09]}  Rxd3 {[%clk 0:01:45]} 32. Rxd3 {[%clk 0:00:10]}  Rd6 {[%clk 0:01:45]} 33. Re3 {[%clk 0:00:10]}  Rd2 {[%clk 0:01:46]} 34. Kh2 {[%clk 0:00:04]}  Rb2 {[%clk 0:01:46]} 35. Kg3 {[%clk 0:00:05]}  Kc8 {[%clk 0:01:44]} 36. Rd3 {[%clk 0:00:04]}  Re2 {[%clk 0:01:44]} 37. Kh3 {[%clk 0:00:02]}  Re6 {[%clk 0:01:42]} 38. Kg3 {[%clk 0:00:02]}  Rd6 {[%clk 0:01:43]} 39. Re3 {[%clk 0:00:02]}  Kd7 {[%clk 0:01:44]} 40. f4 {[%clk 0:00:02]}  gxf4+ {[%clk 0:01:34]} 41. Kxf4 {[%clk 0:00:03]}  Rf6+ {[%clk 0:01:34]} 42. Kg3 {[%clk 0:00:02]}  Re6 {[%clk 0:01:31]} 43. Rd3+ {[%clk 0:00:02]}  Ke7 {[%clk 0:01:31]} 44. Kf4 {[%clk 0:00:02]}  Rf6+ {[%clk 0:01:23]} 45. Kg3 {[%clk 0:00:02]}  Rd6 {[%clk 0:01:23]} 46. Re3+ {[%clk 0:00:02]}  Kf6 {[%clk 0:01:23]} 47. Kh4 {[%clk 0:00:02]}  Rd2 {[%clk 0:01:22]} 48. Rf3+ {[%clk 0:00:02]}  Kg6 {[%clk 0:01:19]} 49. Kg3 {[%clk 0:00:02]}  Rd4 {[%clk 0:01:13]} 50. Kh3 {[%clk 0:00:02]}  Re4 {[%clk 0:01:12]} 51. Kg3 {[%clk 0:00:02]}  f6 {[%clk 0:01:07]} 52. Kh3 {[%clk 0:00:02]}  Rd4 {[%clk 0:01:06]} 53. Kg3 {[%clk 0:00:02]}  Rd2 {[%clk 0:01:06]} 54. Kh3 {[%clk 0:00:02]}  Rd1 {[%clk 0:01:07]} 55. Kg3 {[%clk 0:00:03]}  Rh1 {[%clk 0:01:07]} 56. Kf2 {[%clk 0:00:03]}  Rd1 {[%clk 0:01:05]} 57. Kg3 {[%clk 0:00:03]}  Kf7 {[%clk 0:01:03]} 58. Kf4 {[%clk 0:00:03]}  Rd2 {[%clk 0:01:02]} 59. Kg3 {[%clk 0:00:03]}  Ke6 {[%clk 0:01:00]} 60. Re3+ {[%clk 0:00:03]}  Kd6 {[%clk 0:01:00]} 61. Kf4 {[%clk 0:00:03]}  Rxg2 {[%clk 0:00:59]} 62. Rd3+ {[%clk 0:00:04]}  Ke6 {[%clk 0:00:58]} 63. Re3+ {[%clk 0:00:05]}  Kf7 {[%clk 0:00:59]} 64. Rd3 {[%clk 0:00:05]}  Kg6 {[%clk 0:00:58]} 65. Kf3 {[%clk 0:00:02]}  Rb2 {[%clk 0:00:58]} 66. Kf4 {[%clk 0:00:03]}  Rb1 {[%clk 0:00:58]} 67. Kg3 {[%clk 0:00:01]}  f5 {[%clk 0:00:53]} 68. gxf5+ {[%clk 0:00:01]}  Kxf5 {[%clk 0:00:54]} 69. Kf3 {[%clk 0:00:01]}  Ke5 {[%clk 0:00:54]} 70. Rd5+ {[%clk 0:00:01]}  Ke6 {[%clk 0:00:55]} 71. Rd3 {[%clk 0:00:02]}  h5 {[%clk 0:00:55]} 72. Kf4 {[%clk 0:00:02]}  Rf1+ {[%clk 0:00:55]} 73. Kg5 {[%clk 0:00:02]}  Rf5+ {[%clk 0:00:55]} 74. Kh4 {[%clk 0:00:02]}  Ke5 {[%clk 0:00:55]} 75. Rd7 {[%clk 0:00:01]}  Rf3 {[%clk 0:00:52]} 0-1


[Site "https://www.chess.com"]

[Event "Titled Tuesday Blitz May 24 Late 2022"]
[White "Andreikin, Dmitry"]
[Black "Zakhartsov, Vladimir"]
[WhiteFideId "4158814"]
[BlackFideId "4145097"]
[WhiteElo "2736"]
[BlackElo "2428"]
[Result "1-0"]
[Round "06"]
[TimeControl "180+1"]
[Date "2022.05.24"]
[WhiteClock "0:01:23"]
[BlackClock "0:00:08"]

1. d4 {[%clk 0:03:00]}  Nf6 {[%clk 0:02:57]} 2. c4 {[%clk 0:03:01]}  g6 {[%clk 0:02:57]} 3. Nc3 {[%clk 0:03:00]}  d5 {[%clk 0:02:56]} 4. cxd5 {[%clk 0:03:00]}  Nxd5 {[%clk 0:02:57]} 5. e4 {[%clk 0:02:59]}  Nxc3 {[%clk 0:02:57]} 6. bxc3 {[%clk 0:03:00]}  Bg7 {[%clk 0:02:58]} 7. Be3 {[%clk 0:03:00]}  c5 {[%clk 0:02:58]} 8. Qd2 {[%clk 0:03:00]}  cxd4 {[%clk 0:02:55]} 9. cxd4 {[%clk 0:02:59]}  Nc6 {[%clk 0:02:55]} 10. Rd1 {[%clk 0:02:58]}  O-O {[%clk 0:02:49]} 11. Be2 {[%clk 0:02:43]}  b6 {[%clk 0:02:14]} 12. Nf3 {[%clk 0:02:36]}  Bb7 {[%clk 0:02:13]} 13. h4 {[%clk 0:02:27]}  h5 {[%clk 0:02:11]} 14. Bh6 {[%clk 0:02:26]}  e6 {[%clk 0:02:05]} 15. O-O {[%clk 0:02:19]}  Rc8 {[%clk 0:02:01]} 16. Bxg7 {[%clk 0:02:12]}  Kxg7 {[%clk 0:02:01]} 17. Ng5 {[%clk 0:02:12]}  Qe7 {[%clk 0:01:56]} 18. d5 {[%clk 0:02:08]}  exd5 {[%clk 0:01:47]} 19. exd5 {[%clk 0:02:09]}  Ne5 {[%clk 0:01:39]} 20. Rfe1 {[%clk 0:02:09]}  Qd6 {[%clk 0:01:11]} 21. Ne4 {[%clk 0:02:03]}  Qb8 {[%clk 0:01:06]} 22. f4 {[%clk 0:01:46]}  Nd7 {[%clk 0:01:00]} 23. Bb5 {[%clk 0:01:40]}  Rcd8 {[%clk 0:00:46]} 24. Qd4+ {[%clk 0:01:39]}  f6 {[%clk 0:00:40]} 25. Ng5 {[%clk 0:01:28]}  Nc5 {[%clk 0:00:40]} 26. Re7+ {[%clk 0:01:28]}  Kg8 {[%clk 0:00:41]} 27. d6 {[%clk 0:01:27]}  Rxd6 {[%clk 0:00:08]} 28. Bc4+ {[%clk 0:01:23]} 1-0


[Site "https://www.chess.com"]